bitfinex-derivatives/quotes_ETHF0:USTF0_20260120
["timestamp","ask_amount","ask_price","bid_price","bid_amount"]
[1768888352545,0.64797999,3175.7,3174.8,3.535]
[1768888352843,0.64797999,3175.7,3174.7,0.78458834]
[1768888353043,0.64797999,3175.7,3174.8,3.535]
[1768888353248,0.64797999,3175.3,3174.8,3.535]
[1768888353545,1.03043382,3176.2,3174.8,3.535]
[1768888354437,1.03043382,3176.2,3174.7,0.78458834]
[1768888354636,1.03043382,3176.2,3174.3,41.58706232]
[1768888355138,1.03043382,3176.2,3174.4,3.538]
[1768888355347,0.0156492,3175.3,3174.4,3.538]
[1768888356347,0.0156492,3174.9,3174.4,3.538]
[1768888356548,1.03043382,3175.8,3174.4,3.538]
[1768888356751,1.03043382,3175.8,3174.5,3.543]
[1768888356936,1.03043382,3175.8,3174.6,3.544]
[1768888358336,1.03043382,3175.8,3174.5,3.545]
[1768888361449,1.87213477,3175.7,3174.5,3.545]
[1768888361649,1.03043382,3175.7,3174.5,3.545]
[1768888363445,1.03043382,3175.7,3174.3,40.80247398]
[1768888363651,1.0527273,3175.5,3174.4,3.552]
[1768888364651,1.0527273,3175.5,3174.3,40.80247398]
[1768888364857,1.0527273,3175.5,3174.3,44.35547398]
[1768888367049,1.0527273,3175.5,3174.3,40.80247398]
[1768888367257,1.8946831,3175.4,3174.3,0.00247398]
[1768888367445,1.0527273,3175.4,3174.3,0.00247398]
[1768888367646,1.0527273,3175.4,3173.5,3.93658834]
[1768888367647,1.0527273,3174.9,3173.5,3.152]
[1768888367848,1.0527273,3174.6,3173.0,3.93298677]
[1768888368046,1.89478607,3174.5,3173.3,3.561]
[1768888368243,1.0527273,3174.3,3173.3,3.561]
[1768888368448,1.0527273,3174.3,3172.5,7.10001807]
[1768888368652,1.0527273,3174.3,3172.8,40.8]
[1768888368947,1.05558112,3174.3,3172.8,40.80275267]
[1768888369745,1.05558112,3174.3,3172.9,3.562]
[1768888373069,1.05558112,3174.3,3173.0,3.568]
[1768888386069,1.05558112,3174.3,3172.9,3.585]
[1768888386967,1.05558112,3174.3,3173.0,0.78542912]
[1768888387962,1.05558112,3174.3,3173.3,0.78542912]
[1768888388361,1.92932836,3173.7,3172.8,0.00275267]
[1768888388567,1.14389924,3173.7,3172.8,0.00275267]
[1768888390165,1.14389924,3173.7,3172.8,0.78818179]
[1768888391373,1.14389924,3173.7,3172.8,0.00275267]
[1768888391773,0.00285382,3174.3,3173.6,0.78542912]
[1768888391965,1.14675306,3174.3,3172.8,0.00275267]
[1768888392376,1.14675306,3174.3,3173.1,0.78542912]
[1768888394974,1.14675306,3174.3,3172.8,0.00275267]
[1768888395369,1.14675306,3174.3,3173.0,0.78542912]
[1768888396773,1.14675306,3174.3,3173.3,0.78542912]
[1768888397270,0.85066713,3174.2,3173.3,0.78542912]
[1768888397472,1.14675306,3174.3,3173.3,0.78542912]
[1768888397666,0.85066712,3174.2,3173.3,0.78542912]
[1768888397866,1.14675306,3174.3,3173.3,0.78542912]
[1768888398168,0.85066625,3174.2,3173.3,0.78542912]
[1768888398365,1.14675306,3174.3,3173.3,0.78542912]
[1768888398569,0.85071953,3174.2,3173.6,0.78542912]
[1768888398779,0.00285382,3174.3,3173.6,0.78542912]
[1768888404178,1.27898897,3174.3,3172.8,0.16046267]
[1768888404371,1.27898897,3174.3,3173.3,0.78542912]
[1768888404772,0.00285382,3174.3,3173.9,0.78542912]
[1768888405272,1.27898897,3174.3,3172.8,0.16046267]
[1768888405472,1.27898897,3174.3,3173.3,0.78542912]
[1768888408085,1.27898897,3174.3,3173.6,0.78542912]
[1768888409087,0.00285382,3174.3,3173.6,0.78542912]
[1768888413687,0.00285382,3174.3,3173.2,0.78542912]
[1768888413880,1.27898897,3174.3,3173.2,0.78542912]
[1768888416884,1.27898897,3174.3,3173.3,0.78542912]
[1768888419090,0.84876675,3174.2,3173.3,0.78542912]
[1768888419283,1.27898897,3174.3,3173.3,0.78542912]
[1768888419584,0.84876682,3174.2,3173.3,0.78542912]
[1768888419791,1.27898897,3174.3,3173.3,0.78542912]
[1768888420088,0.84876681,3174.2,3173.3,0.78542912]
[1768888420289,1.27898897,3174.3,3173.3,0.78542912]
[1768888420490,0.84915912,3174.2,3173.3,0.78542912]
[1768888420788,1.27898897,3174.3,3173.3,0.78542912]
[1768888420990,2.12529427,3174.2,3173.3,0.78542912]
[1768888421189,0.84984044,3174.1,3173.3,0.78542912]
[1768888421490,1.27613515,3174.2,3173.3,0.78542912]
[1768888421685,0.84985905,3174.1,3173.3,0.78542912]
[1768888421884,1.27613515,3174.2,3173.3,0.78542912]
[1768888422088,0.85024798,3174.1,3173.3,0.78542912]
[1768888422286,1.27613515,3174.2,3173.3,0.78542912]
[1768888422491,0.85025828,3174.1,3173.3,0.78542912]
[1768888422692,1.27613515,3174.2,3173.3,0.78542912]
[1768888422891,0.85025832,3174.1,3173.3,0.78542912]
[1768888423083,1.27613515,3174.2,3173.3,0.78542912]
[1768888423286,0.85026174,3174.1,3173.3,0.78542912]
[1768888423485,1.27613515,3174.2,3173.3,0.78542912]
[1768888423785,0.85026173,3174.1,3173.0,0.78542912]
[1768888424093,0.85026173,3174.0,3173.0,0.78542912]
[1768888424287,1.27613515,3174.2,3173.0,0.78542912]
[1768888424596,0.00285382,3174.3,3173.0,0.78542912]
[1768888424597,2.1856452,3174.1,3173.0,0.78542912]
[1768888424792,0.85024842,3174.0,3173.0,0.78542912]
[1768888425786,0.85024842,3174.0,3173.3,0.78542912]
[1768888425993,0.00285382,3174.3,3173.3,0.78542912]
[1768888426193,0.85020889,3174.2,3173.3,0.78542912]
[1768888426392,0.85020889,3174.1,3173.3,0.78542912]
[1768888426593,0.85020889,3174.0,3173.3,0.78542912]
[1768888426893,0.00285382,3174.3,3173.3,0.78542912]
[1768888427091,0.85019051,3174.2,3173.3,0.78542912]
[1768888427285,0.85019051,3174.1,3173.3,0.78542912]
[1768888427492,0.85019051,3174.0,3173.3,0.78542912]
[1768888427695,0.00285382,3174.3,3173.3,0.78542912]
[1768888427891,0.850164,3174.2,3173.3,0.78542912]
[1768888428092,0.850164,3174.1,3173.3,0.78542912]
[1768888428400,0.850164,3174.0,3173.3,0.78542912]
[1768888428700,0.00285382,3174.3,3173.3,0.78542912]
[1768888428889,0.85015142,3174.2,3173.3,0.78542912]
[1768888429088,0.85015142,3174.1,3173.3,0.78542912]
[1768888429291,0.00285382,3174.3,3173.3,0.78542912]
[1768888429494,0.85013682,3174.2,3173.3,0.78542912]
[1768888429793,0.85013682,3174.1,3173.3,0.78542912]
[1768888430094,0.00285382,3174.3,3173.3,0.78542912]
[1768888430295,0.85012899,3174.2,3173.3,0.78542912]
[1768888430598,0.85012899,3174.1,3173.3,0.78542912]
[1768888430907,0.85012899,3174.0,3173.3,0.78542912]
[1768888431194,0.00285382,3174.3,3173.3,0.78542912]
[1768888431401,0.85013276,3174.2,3173.3,0.78542912]
[1768888431599,0.85013276,3174.1,3173.3,0.78542912]
[1768888431901,0.85013276,3174.0,3173.3,0.78542912]
[1768888432102,1.3382506,3174.3,3173.3,0.78542912]
[1768888432398,0.85012991,3174.2,3173.3,0.78542912]
[1768888432594,0.85012991,3174.1,3173.3,0.78542912]
[1768888432793,0.85012991,3174.0,3173.3,0.78542912]
[1768888433002,1.33539678,3174.2,3173.3,0.78542912]
[1768888433188,0.85014151,3174.1,3173.3,0.78542912]
[1768888433391,0.85014151,3174.0,3173.3,0.78542912]
[1768888433587,1.33539678,3174.2,3173.3,0.78542912]
[1768888433789,0.85012608,3174.1,3173.3,0.78542912]
[1768888434099,0.85012608,3174.0,3173.3,0.78542912]
[1768888434299,1.33539678,3174.2,3173.3,0.78542912]
[1768888434504,0.85013044,3174.1,3173.3,0.78542912]
[1768888434704,0.85013044,3174.0,3173.3,0.78542912]
[1768888434905,0.00285382,3174.3,3173.3,0.78542912]
[1768888435199,0.85013032,3174.2,3173.3,0.78542912]
[1768888435403,0.85013032,3174.1,3173.3,0.78542912]
[1768888435614,0.85013032,3174.0,3173.3,0.78542912]
[1768888435804,0.00285382,3174.3,3173.3,0.78542912]
[1768888436003,0.85015208,3174.2,3173.3,0.78542912]
[1768888436317,0.85015208,3174.1,3173.3,0.78542912]
[1768888436609,0.00285382,3174.3,3173.3,0.78542912]
[1768888436801,0.85013544,3174.2,3173.6,0.78542912]
[1768888437006,1.29856076,3174.3,3172.8,0.00275267]
[1768888437207,1.29856076,3174.3,3173.0,0.78542912]
[1768888440107,1.29856076,3174.3,3172.8,0.00275267]
[1768888440409,1.29570694,3174.1,3172.8,0.00275267]
[1768888440605,1.29570694,3174.1,3173.0,0.78542912]
[1768888441105,1.29570694,3174.1,3172.8,0.00275267]
[1768888441305,1.29570694,3174.1,3173.0,0.78542912]
[1768888442621,1.29570694,3174.1,3172.8,0.00275267]
[1768888442915,1.29570694,3174.0,3172.8,0.00275267]
[1768888443619,1.29570694,3173.8,3172.8,0.00275267]
[1768888446020,1.29570694,3173.5,3172.8,0.00275267]
[1768888446217,1.13308214,3173.9,3172.0,0.78542912]
[1768888446218,1.29570694,3173.1,3172.0,0.78542912]
[1768888447128,2.08113606,3172.8,3172.0,0.00377075]
[1768888447424,1.29570694,3172.7,3172.0,0.00377075]
[1768888449129,1.29570694,3173.2,3172.0,0.00377075]
[1768888449425,0.8453636,3173.1,3172.0,0.00377075]
[1768888449618,1.29570694,3173.2,3172.0,0.00377075]
[1768888449818,0.84507761,3173.1,3172.0,0.00377075]
[1768888450018,1.29570694,3173.2,3172.0,0.00377075]
[1768888450827,1.29570694,3173.6,3172.3,0.78596847]
[1768888451022,0.84474372,3173.5,3172.3,0.78596847]
[1768888451325,1.29570694,3173.6,3172.3,0.78596847]
[1768888451918,1.13308214,3174.1,3172.3,0.78596847]
[1768888452120,2.1404599,3174.0,3172.3,0.78596847]
[1768888452331,0.84475296,3173.9,3172.3,0.78596847]
[1768888452626,1.29570694,3174.0,3172.3,2.06786896]
[1768888453214,1.29570694,3174.0,3172.7,0.78596847]
[1768888453529,0.00285382,3174.3,3173.1,0.78596847]
[1768888453728,0.00285382,3174.3,3173.2,3.542]
[1768888456123,1.29570694,3174.8,3173.5,0.78596847]
[1768888456528,1.29570694,3174.8,3173.2,7.97790049]
[1768888457122,0.00355354,3174.8,3173.8,0.78596847]
[1768888458526,0.80875451,3175.5,3174.2,0.78596847]
[1768888458728,0.80875451,3175.5,3174.3,3.536]
[1768888459332,1.29570694,3175.5,3174.3,3.536]
[1768888459535,1.298705,3175.5,3174.3,3.53940317]
[1768888460534,1.298705,3175.5,3174.4,3.534]
[1768888465126,1.298705,3175.5,3174.3,0.00340317]
[1768888466036,1.456285,3175.5,3174.3,0.00340317]
[1768888469027,1.47269105,3175.3,3174.3,0.00340317]
[1768888469241,1.63030105,3174.8,3173.3,3.153]
[1768888469432,1.63030105,3174.8,3173.3,6.678]
[1768888470242,1.63030105,3174.8,3173.3,3.15549615]
[1768888471738,1.63031105,3174.6,3173.3,0.00249615]
[1768888473736,1.47269105,3174.3,3173.3,0.00249615]
[1768888475129,1.63033105,3174.3,3173.3,0.00249615]
[1768888475330,1.91905061,3175.1,3172.5,41.58596847]
[1768888475331,1.47269105,3174.1,3172.5,41.58596847]
[1768888475540,1.47269105,3174.1,3172.6,6.673]
[1768888476334,1.47269105,3174.1,3172.6,6.67653556]
[1768888477336,1.47269105,3174.1,3172.7,3.525]
[1768888477532,1.63034105,3174.1,3172.6,0.00353556]
[1768888477835,1.47269105,3174.1,3172.7,3.526]
[1768888478442,1.47269105,3173.9,3172.6,0.00353556]
[1768888478738,1.47269105,3173.9,3172.7,3.526]
[1768888478936,1.47269105,3173.9,3172.8,3.526]
[1768888483052,1.47269105,3173.9,3172.9,3.532]
[1768888483751,1.51471474,3174.4,3172.9,4.31796847]
[1768888483952,0.84621885,3174.3,3172.9,4.31796847]
[1768888484143,0.84621885,3174.2,3172.9,4.31796847]
[1768888484347,1.51471474,3174.4,3172.9,5.85450538]
[1768888484653,0.84617096,3174.3,3172.9,5.85450538]
[1768888484838,0.84617096,3174.2,3172.9,5.85450538]
[1768888485053,1.51471474,3174.4,3172.9,5.85450538]
[1768888485250,0.84616538,3174.3,3173.0,42.33653691]
[1768888485448,0.15762,3174.7,3173.1,1.53653691]
[1768888485645,0.84604759,3174.6,3173.1,1.53653691]
[1768888485844,0.84604759,3174.5,3173.1,1.53653691]
[1768888486149,0.15762,3174.7,3173.1,1.53653691]
[1768888486451,0.84604163,3174.6,3173.1,1.53653691]
[1768888486654,0.84604163,3174.5,3173.1,1.53653691]
[1768888486851,0.15762,3174.6,3173.2,6.687]
[1768888487452,1.67233474,3174.6,3173.2,6.687]
[1768888487646,1.67233474,3174.6,3173.3,6.688]
[1768888489350,0.84626773,3174.5,3173.3,6.688]
[1768888489540,1.67233474,3174.6,3173.3,6.688]
[1768888489738,0.84628026,3174.5,3173.3,6.688]
[1768888489948,1.67233474,3174.6,3173.3,6.688]
[1768888490148,0.84627167,3174.5,3173.3,6.688]
[1768888490338,1.67233474,3174.6,3173.3,6.688]
[1768888490539,0.84646708,3174.5,3173.3,6.688]
[1768888490740,1.67233474,3174.6,3173.3,6.688]
[1768888490956,0.84646711,3174.5,3173.3,6.688]
[1768888491170,1.67233474,3174.6,3173.3,6.688]
[1768888491348,0.84646314,3174.5,3173.3,6.688]
[1768888491550,1.67233474,3174.6,3173.3,6.688]
[1768888491846,0.84665816,3174.5,3173.3,6.688]
[1768888492047,1.67233474,3174.6,3173.3,6.688]
[1768888492239,0.84665818,3174.5,3173.3,6.688]
[1768888492443,1.67233474,3174.6,3173.3,6.688]
[1768888492656,0.84687815,3174.5,3173.3,6.688]
[1768888492847,1.67233474,3174.6,3173.3,6.688]
[1768888493157,0.84687788,3174.5,3173.3,6.688]
[1768888493364,0.84713179,3174.4,3173.3,6.688]
[1768888493547,1.67233474,3174.6,3173.3,6.688]
[1768888493749,0.84713181,3174.5,3173.3,6.688]
[1768888494041,0.84713181,3174.4,3173.3,6.688]
[1768888494249,1.67233474,3174.6,3173.3,6.688]
[1768888494446,0.84742322,3174.5,3173.3,6.688]
[1768888494660,0.84742322,3174.4,3173.3,6.688]
[1768888494861,1.67233474,3174.6,3173.3,6.688]
[1768888495158,0.8474232,3174.5,3172.9,41.58596847]
[1768888495357,0.8474232,3174.4,3173.0,6.698]
[1768888495656,0.15762,3174.6,3173.3,2.37466813]
[1768888496458,0.85314146,3174.5,3173.3,2.37466813]
[1768888496656,0.15762,3174.6,3173.3,2.37466813]
[1768888496861,0.85314147,3174.5,3173.3,2.37466813]
[1768888497053,0.15762,3174.6,3173.3,2.37466813]
[1768888497248,0.85314149,3174.5,3173.3,2.37466813]
[1768888497449,0.15762,3174.6,3173.3,2.37466813]
[1768888497646,0.85126535,3174.5,3173.3,2.37466813]
[1768888497860,0.15762,3174.6,3173.3,2.37466813]
[1768888498157,0.85126534,3174.5,3173.3,2.37466813]
[1768888498358,0.15762,3174.6,3173.3,2.37466813]
[1768888498564,0.85155785,3174.5,3173.3,2.37466813]
[1768888498856,0.15762,3174.6,3173.3,2.37466813]
[1768888499062,0.85155837,3174.5,3173.3,2.37466813]
[1768888499253,0.15762,3174.6,3173.3,2.37466813]
[1768888499454,0.85157666,3174.5,3173.3,2.37466813]
[1768888499759,1.7292811,3174.6,3173.4,3.551]
[1768888499968,0.8515765,3174.5,3173.4,3.551]
[1768888500155,1.7292811,3174.6,3173.4,3.551]
[1768888500365,2.42323795,3174.5,3173.5,3.552]
[1768888500566,0.85157685,3174.4,3173.5,3.552]
[1768888500967,0.85157685,3174.4,3173.5,3.553]
[1768888501763,0.15762,3174.6,3173.5,3.553]
[1768888501961,0.85161232,3174.5,3173.5,3.553]
[1768888502273,2.70474324,3174.9,3173.5,3.553]
[1768888502461,0.85156,3174.8,3173.5,3.553]
[1768888502661,0.85156,3174.7,3173.5,3.553]
[1768888502860,0.85156,3174.6,3173.5,3.553]
[1768888503068,1.13308214,3175.0,3173.5,3.553]
[1768888503261,0.85149524,3174.9,3173.6,3.556]
[1768888503565,0.15759,3175.2,3173.6,5.14469966]
[1768888503761,0.85130414,3175.1,3173.6,5.14469966]
[1768888503962,0.85130414,3175.0,3173.7,2.37466813]
[1768888504161,1.5716611,3175.3,3173.8,1.58869966]
[1768888504362,0.85127388,3175.2,3173.8,1.58869966]
[1768888504563,0.85127388,3175.1,3173.9,3.555]
[1768888504867,1.5716611,3175.3,3173.9,3.555]
[1768888505168,0.85094876,3175.2,3173.9,3.555]
[1768888505365,0.85094876,3175.1,3173.9,3.555]
[1768888505565,1.5716611,3175.3,3173.9,3.555]
[1768888505765,0.85069271,3175.2,3173.9,3.555]
[1768888505964,0.85069271,3175.1,3173.9,3.555]
[1768888506166,1.5716611,3175.3,3173.9,3.555]
[1768888506362,0.85068743,3175.2,3173.9,3.555]
[1768888506665,1.5716611,3175.0,3174.0,3.553]
[1768888507259,0.85052989,3174.9,3174.0,3.553]
[1768888507474,1.5716611,3174.9,3173.9,3.552]
[1768888509161,0.00299806,3175.5,3174.2,0.78596847]
[1768888509366,0.85041175,3175.4,3174.2,0.78596847]
[1768888509567,0.00299806,3175.5,3174.2,0.78596847]
[1768888509768,0.85030162,3175.4,3174.2,0.78596847]
[1768888509966,0.00299806,3175.5,3174.2,0.78596847]
[1768888510163,0.8503018,3175.4,3174.2,0.78596847]
[1768888510364,0.00299806,3175.5,3174.2,0.78596847]
[1768888510558,0.85025208,3175.4,3174.2,0.78596847]
[1768888510758,0.00299806,3175.5,3174.0,5.92466813]
[1768888510958,0.85023436,3175.4,3174.4,0.78468426]
[1768888511158,0.00299806,3175.5,3174.4,0.78468426]
[1768888511360,0.85021815,3175.4,3174.4,0.78468426]
[1768888511659,0.00299806,3175.5,3174.4,0.78468426]
[1768888511852,0.85020331,3175.4,3174.4,0.78468426]
[1768888512054,0.00299806,3175.5,3174.4,0.78468426]
[1768888512355,0.8502026,3175.4,3174.4,0.78468426]
[1768888512552,0.00299806,3175.5,3174.4,0.78468426]
[1768888512762,0.85025668,3175.4,3174.4,0.78468426]
[1768888512964,0.00299806,3175.5,3174.4,0.78468426]
[1768888513268,0.85025669,3175.4,3174.4,0.78468426]
[1768888513468,0.00299806,3175.5,3174.4,0.78468426]
[1768888513670,0.85036295,3175.4,3174.4,0.78468426]
[1768888513968,0.00299806,3175.5,3174.4,0.78468426]
[1768888514160,0.85036294,3175.4,3174.4,0.78468426]
[1768888514362,0.00299806,3175.5,3174.4,0.78468426]
[1768888514561,0.85038522,3175.4,3174.4,0.78468426]
[1768888514762,0.00299806,3175.5,3174.4,0.78468426]
[1768888514962,0.85038525,3175.4,3174.4,0.78468426]
[1768888515171,0.00299806,3175.5,3174.4,0.78468426]
[1768888515362,0.85038526,3175.4,3174.4,0.78468426]
[1768888515562,0.00299806,3175.5,3174.4,0.78468426]
[1768888515762,0.85040523,3175.4,3174.4,0.78468426]
[1768888516062,0.00299806,3175.5,3174.4,0.78468426]
[1768888516263,0.85040126,3175.4,3174.4,0.78468426]
[1768888516463,0.00299806,3175.5,3174.4,0.78468426]
[1768888516664,0.85035706,3175.4,3174.4,0.78468426]
[1768888516873,0.00299806,3175.5,3174.4,0.78468426]
[1768888517068,0.85035698,3175.4,3174.4,0.78468426]
[1768888517269,0.00299806,3175.5,3174.4,0.78468426]
[1768888517469,0.85034828,3175.4,3174.4,0.78468426]
[1768888517769,0.00299806,3175.5,3174.4,0.78468426]
[1768888517971,0.85035024,3175.4,3174.4,0.78468426]
[1768888518175,0.00299806,3175.5,3174.4,0.78468426]
[1768888518473,0.85035025,3175.4,3174.4,0.78468426]
[1768888518674,0.00299806,3175.5,3174.4,0.78468426]
[1768888518871,0.85034958,3175.4,3174.4,0.78468426]
[1768888519077,0.00299806,3175.5,3174.4,0.78468426]
[1768888519279,0.85033312,3175.4,3174.4,0.78468426]
[1768888519480,0.00299806,3175.5,3174.4,0.78468426]
[1768888519670,0.85037041,3175.4,3174.4,0.78468426]
[1768888519980,0.00299806,3175.5,3174.4,0.78468426]
[1768888520177,0.85037148,3175.4,3174.4,0.78468426]
[1768888520380,0.00299806,3175.5,3174.4,0.78468426]
[1768888520572,0.85041969,3175.4,3174.4,0.78468426]
[1768888520769,1.7292611,3175.1,3173.2,1.58869966]
[1768888520973,2.35634536,3175.0,3173.6,0.78468426]
[1768888521171,1.5716611,3175.0,3173.8,0.78468426]
[1768888522579,0.1576,3175.1,3173.8,2.37338392]
[1768888522778,0.00299806,3175.5,3174.7,0.78468426]
[1768888522974,0.85066429,3175.4,3174.5,0.78468426]
[1768888523175,0.85066429,3175.3,3174.5,0.78468426]
[1768888523370,0.00299806,3175.5,3174.5,0.78468426]
[1768888523574,0.85077081,3175.4,3174.5,0.78468426]
[1768888523879,0.00299806,3175.5,3174.5,0.78468426]
[1768888523880,0.85077081,3175.3,3174.5,0.78468426]
[1768888524078,0.00299806,3175.5,3174.5,0.78468426]
[1768888524279,0.85077015,3175.4,3174.5,0.78468426]
[1768888524578,0.85077015,3175.3,3174.5,0.78468426]
[1768888524778,0.00299806,3175.5,3174.5,0.78468426]
[1768888524978,0.85091296,3175.4,3174.5,0.78468426]
[1768888525279,0.85091296,3175.3,3174.5,0.78468426]
[1768888525484,0.00299806,3175.5,3174.5,0.78468426]
[1768888525683,0.85108787,3175.4,3174.5,0.78468426]
[1768888525985,0.85108787,3175.3,3174.5,0.78468426]
[1768888526182,0.16057806,3175.5,3174.5,0.78468426]
[1768888526378,0.85108942,3175.4,3174.5,0.78468426]
[1768888526581,0.16057806,3175.5,3174.5,0.78468426]
[1768888526582,0.85108942,3175.3,3174.5,0.78468426]
[1768888526793,0.16057806,3175.5,3174.5,0.78468426]
[1768888526983,0.85119148,3175.4,3174.5,0.78468426]
[1768888527279,0.85119148,3175.3,3174.5,0.78468426]
[1768888527584,0.84977385,3175.2,3174.1,0.78468426]
[1768888527788,1.66833102,3175.3,3174.1,3.87868426]
[1768888527982,0.84981523,3175.2,3174.1,3.87868426]
[1768888528177,1.66833102,3175.3,3174.1,3.87868426]
[1768888528378,0.84981545,3175.2,3174.1,3.87868426]
[1768888528578,1.66833102,3175.3,3174.1,3.87868426]
[1768888528779,0.84997929,3175.2,3174.1,3.87868426]
[1768888528975,1.66833102,3175.2,3174.1,0.78468426]
[1768888529276,0.1576,3175.1,3174.1,0.78468426]
[1768888530285,0.1576,3175.1,3173.9,3.539]
[1768888530487,0.1576,3175.1,3174.1,0.78468426]
[1768888531287,0.85049739,3175.0,3174.1,0.78468426]
[1768888531488,0.1576,3175.1,3173.7,40.8]
[1768888531690,2.36126665,3175.0,3173.7,3.542]
[1768888531995,0.85052563,3174.9,3173.7,3.542]
[1768888532195,1.00813563,3174.9,3173.7,3.542]
[1768888532494,0.85052563,3174.8,3173.7,3.542]
[1768888533195,0.85052563,3174.8,3173.8,0.78468426]
[1768888534790,0.85052563,3174.8,3173.7,3.542]
[1768888535093,0.15761,3174.9,3174.5,0.78468426]
[1768888535283,1.13308214,3175.3,3174.3,0.78468426]
[1768888535887,1.13308214,3175.3,3174.1,0.78468426]
[1768888537595,1.29067214,3175.3,3174.1,0.78468426]
[1768888537894,1.51074102,3175.1,3173.9,0.78468426]
[1768888538095,1.66834102,3175.1,3173.6,40.8]
[1768888538297,1.66834102,3175.1,3173.7,4.33568426]
[1768888538595,1.66834102,3175.1,3173.7,3.551]
[1768888538791,1.66834102,3175.1,3173.7,4.33568426]
[1768888539097,1.66834102,3175.1,3173.7,3.551]
[1768888539292,1.66834102,3175.1,3173.7,4.33568426]
[1768888539994,1.51074102,3174.9,3173.1,2.80927627]
[1768888540200,1.51074102,3174.8,3173.5,0.78468426]
[1768888543500,0.78468426,3174.7,3173.4,3.554]
[1768888543894,1.6645797,3174.6,3173.3,0.78468426]
[1768888544092,2.44926396,3174.5,3173.1,0.78468426]
[1768888544291,2.44926396,3174.5,3173.1,4.33968426]
[1768888545096,1.6645797,3174.4,3172.7,0.15771]
[1768888545295,0.78468426,3174.3,3172.9,0.78468426]
[1768888545486,0.78468426,3174.3,3172.8,3.554]
[1768888545487,0.78468426,3174.3,3173.1,0.78468426]
[1768888545887,1.6645797,3174.4,3173.1,0.78468426]
[1768888546900,0.94230426,3174.6,3173.1,0.78468426]
[1768888547092,0.84627506,3174.5,3173.3,0.78468426]
[1768888547292,0.84627506,3174.4,3173.3,0.78468426]
[1768888547498,0.94230426,3174.6,3173.3,0.78468426]
[1768888547700,0.84615425,3174.5,3173.3,0.78468426]
[1768888547900,0.84615425,3174.4,3173.3,0.78468426]
[1768888548099,0.15762,3174.6,3173.3,0.78468426]
[1768888548301,0.84615135,3174.5,3173.3,0.78468426]
[1768888548500,0.84615135,3174.4,3173.3,0.78468426]
[1768888548801,0.15762,3174.6,3173.3,0.78468426]
[1768888549002,0.84606571,3174.5,3173.3,0.78468426]
[1768888549304,0.84606571,3174.4,3173.4,0.78468426]
[1768888549501,0.15762,3174.6,3173.4,0.78468426]
[1768888549707,0.84599561,3174.5,3173.4,0.78468426]
[1768888550005,0.84599561,3174.4,3173.4,0.78468426]
[1768888550194,0.15762,3174.6,3173.4,0.78468426]
[1768888550501,0.84599693,3174.5,3173.4,0.78468426]
[1768888550806,0.84599693,3174.4,3173.4,0.78468426]
[1768888550996,0.15762,3174.6,3173.4,0.78468426]
[1768888551197,0.84597204,3174.5,3173.4,0.78468426]
[1768888551398,0.84597204,3174.4,3173.4,0.78468426]
[1768888551697,0.15762,3174.6,3173.4,0.78468426]
[1768888551898,0.84589685,3174.5,3173.4,0.78468426]
[1768888552098,0.84589685,3174.4,3173.4,0.78468426]
[1768888552399,0.15762,3174.6,3173.4,0.78468426]
[1768888552598,0.84581955,3174.5,3173.4,0.78468426]
[1768888552899,0.84581955,3174.4,3173.4,0.78468426]
[1768888553103,0.15762,3174.6,3173.4,0.78468426]
[1768888553300,0.84581939,3174.5,3173.4,0.78468426]
[1768888553499,0.84581939,3174.4,3173.4,0.78468426]
[1768888553708,0.15762,3174.6,3173.4,0.78468426]
[1768888553908,0.84583446,3174.5,3173.4,0.78468426]
[1768888554112,0.84583446,3174.4,3173.4,0.78468426]
[1768888554300,0.15762,3174.6,3173.4,0.78468426]
[1768888554504,0.84587747,3174.5,3173.4,0.78468426]
[1768888554703,2.38877329,3174.4,3173.2,0.78468426]
[1768888554902,1.54289582,3174.4,3173.2,0.78468426]
[1768888555615,2.32758008,3174.4,3172.7,0.15771]
[1768888555808,2.32758008,3174.4,3173.1,0.78468426]
[1768888556510,1.54289582,3174.4,3173.1,0.78468426]
[1768888556708,1.54289582,3174.4,3172.7,44.51271]
[1768888556709,1.54289582,3174.4,3173.3,0.78468426]
[1768888557420,0.15763,3174.5,3173.3,0.78468426]
[1768888557613,0.84958719,3174.4,3173.3,0.78468426]
[1768888557814,0.15763,3174.5,3173.3,0.78468426]
[1768888558009,0.84958865,3174.4,3173.3,0.78468426]
[1768888558212,0.15763,3174.5,3173.3,0.78468426]
[1768888558412,0.84957608,3174.4,3173.3,0.78468426]
[1768888558720,0.15763,3174.5,3173.3,0.78468426]
[1768888558721,0.15763,3174.5,3173.6,0.78468426]
[1768888560319,0.1576,3175.1,3173.9,0.78468426]
[1768888560513,0.84988719,3175.0,3173.9,0.78468426]
[1768888560714,0.84988719,3174.9,3173.6,4.34068426]
[1768888560910,1.70049582,3175.0,3173.6,4.34068426]
[1768888561113,0.84991142,3174.9,3173.6,4.34068426]
[1768888561306,0.78468426,3174.8,3173.6,0.78468426]
[1768888561512,0.78468426,3174.5,3172.9,1.64672015]
[1768888561711,2.32758008,3174.5,3173.0,3.555]
[1768888562522,0.85017304,3174.4,3173.0,3.555]
[1768888562707,2.32758008,3174.5,3173.2,0.78468426]
[1768888562912,0.85017049,3174.4,3173.2,0.78468426]
[1768888563217,1.54289582,3174.5,3173.2,0.78468426]
[1768888563419,0.85020111,3174.4,3173.2,0.78468426]
[1768888563719,1.54289582,3174.5,3173.2,0.78468426]
[1768888564023,0.85023451,3174.4,3173.2,0.78468426]
[1768888564219,1.54289582,3174.5,3173.2,0.78468426]
[1768888564418,0.85025942,3174.4,3173.2,0.78468426]
[1768888564621,1.54289582,3174.5,3173.2,0.78468426]
[1768888564819,0.85027623,3174.4,3173.2,0.78468426]
[1768888565019,1.54289582,3174.5,3173.2,0.78468426]
[1768888565212,0.85027625,3174.4,3173.2,0.78468426]
[1768888565412,1.54289582,3174.5,3173.2,0.78468426]
[1768888565613,0.78468426,3174.6,3173.0,3.555]
[1768888565614,2.39334383,3174.4,3173.1,0.78468426]
[1768888565824,1.54289582,3174.4,3173.1,0.78468426]
[1768888566122,1.54289582,3174.4,3173.2,3.562]
[1768888566322,0.85063957,3174.3,3173.2,3.562]
[1768888566523,1.54289582,3174.4,3173.2,3.562]
[1768888566727,0.85063916,3174.3,3173.2,3.562]
[1768888567023,1.54289582,3174.4,3173.2,3.562]
[1768888567318,0.85063915,3174.3,3173.2,3.562]
[1768888567525,1.54289582,3174.4,3173.2,3.562]
[1768888567717,0.85086605,3174.3,3173.2,3.562]
[1768888567912,1.54289582,3174.4,3172.7,42.44672015]
[1768888568117,0.85086608,3174.3,3173.1,0.78468426]
[1768888568310,1.54289582,3174.4,3173.1,0.78468426]
[1768888568516,0.85111938,3174.3,3173.1,0.78468426]